bitfinex/quotes_SOLUSD_20251125
["timestamp","ask_amount","ask_price","bid_price","bid_amount"]
[1764111676708,3.24,138.94,138.9,16.968864]
[1764111676906,3.24,138.94,138.9,28.20270759]
[1764111677123,3.24,138.94,138.91,7.19890576]
[1764111677524,3.24,138.94,138.87,44.81484158]
[1764111677525,0.66,138.93,138.87,38.04621219]
[1764111677715,0.66,138.93,138.86,18.4353415]
[1764111678022,0.66,138.93,138.83,7.40291598]
[1764111678229,11.23384359,138.9,138.83,7.40291598]
[1764111678426,3.24,138.89,138.83,18.63675957]
[1764111678627,0.66,138.89,138.83,13.88650307]
[1764111678837,3.24,138.88,138.84,6.48358709]
[1764111679028,3.24,138.88,138.83,26.07055121]
[1764111679227,3.9,138.88,138.83,14.54650307]
[1764111679736,3.9,138.88,138.84,7.14358709]
[1764111680228,3.9,138.88,138.83,7.40291598]
[1764111680436,0.66,138.87,138.83,7.40291598]
[1764111680802,3.24,138.86,138.83,7.40291598]
[1764111681427,0.66,138.85,138.83,0.2]
[1764111681729,16.308864,138.91,138.83,7.40298938]
[1764111681730,3.24,138.84,138.83,7.40298938]
[1764111681947,25.85798415,138.9,138.83,0.2]
[1764111682238,6.48358709,138.88,138.83,7.40303969]
[1764111682609,3.9,138.87,138.83,7.40303969]
[1764111683120,0.66,138.86,138.83,0.2]
[1764111683307,7.20201656,138.85,138.83,0.2]
[1764111683730,0.68,138.84,138.83,0.2]
[1764111683918,3.92,138.84,138.83,0.2]
[1764111685035,3.24,138.84,138.83,0.2]
[1764111685217,0.68,138.87,138.83,7.40283741]
[1764111685527,3.24,138.86,138.83,7.40283741]
[1764111685730,0.68,138.87,138.83,8.10283741]
[1764111685932,3.24,138.86,138.83,8.10283741]
[1764111686241,3.24,138.86,138.83,26.11047264]
[1764111687036,3.24,138.86,138.83,25.41047264]
[1764111687236,3.24,138.86,138.83,7.40283741]
[1764111687618,3.92,138.86,138.83,7.40283741]
[1764111688219,3.24,138.86,138.83,7.40283741]
[1764111688619,0.68,138.85,138.83,7.40283741]
[1764111689042,3.24,138.86,138.83,7.40283741]
[1764111689236,3.92,138.86,138.83,7.40283741]
[1764111689731,3.24,138.87,138.83,8.10283741]
[1764111690050,3.92,138.86,138.83,7.40283741]
[1764111692339,0.68,138.89,138.84,15.99353201]
[1764111692530,3.24,138.89,138.84,15.99353201]
[1764111692733,3.24,138.89,138.85,0.7]
[1764111692942,3.24,138.89,138.85,7.18358709]
[1764111693144,7.87789306,138.93,138.86,15.29353201]
[1764111693447,0.68,138.95,138.9,15.29353201]
[1764111693747,3.24,138.96,138.93,13.68145652]
[1764111694241,3.24,138.96,138.93,14.38145652]
[1764111694620,0.68,138.98,138.93,14.38145652]
[1764111694817,3.24,138.97,138.93,7.19786943]
[1764111695018,3.24,138.97,138.88,9.50994492]
[1764111695019,16.91938541,138.97,138.88,9.50994492]
[1764111695228,0.68,138.96,138.9,22.79245109]
[1764111695448,0.68,138.96,138.91,8.80994492]
[1764111695943,3.24,138.95,138.91,15.29353201]
[1764111696121,3.24,138.95,138.91,8.80994492]
[1764111696330,3.92,138.95,138.91,8.80994492]
[1764111696758,7.87545218,138.98,138.93,8.80994492]
[1764111697052,3.24,138.96,138.92,7.19821882]
[1764111697539,0.68,138.95,138.92,7.19821882]
[1764111699351,0.68,138.95,138.9,22.49295605]
[1764111699556,0.68,138.95,138.9,23.19295605]
[1764111700250,7.87684397,138.95,138.9,23.19295605]
[1764111700448,3.24,138.94,138.91,0.7]
[1764111700650,3.92,138.94,138.9,25.89798415]
[1764111700850,0.68,138.93,138.9,7.19942404]
[1764111702553,7.87788535,138.93,138.89,16.308864]
[1764111702855,14.36147244,138.93,138.87,23.50975796]
[1764111703052,14.36147244,138.93,138.85,13.68541782]
[1764111703053,7.16358709,138.92,138.85,13.68541782]
[1764111703256,7.16358709,138.91,138.85,7.20183073]
[1764111703461,3.24,138.9,138.85,7.20183073]
[1764111703761,3.92,138.9,138.85,7.20183073]
[1764111703954,0.68,138.89,138.85,7.20183073]
[1764111705452,7.88013544,138.89,138.84,7.2023606]
[1764111705849,0.68,138.88,138.84,7.2023606]
[1764111706253,7.88058169,138.88,138.84,7.2023606]
[1764111706459,7.88058169,138.88,138.83,13.88643098]
[1764111706757,0.68,138.87,138.83,7.40284389]
[1764111706950,3.24,138.86,138.83,7.40284389]
[1764111708743,10.44155946,138.86,138.83,0.2]
[1764111708952,0.68,138.85,138.83,0.2]
[1764111710161,7.20155946,138.86,138.83,0.2]
[1764111710376,3.24,138.85,138.83,0.2]
[1764111711156,3.24,138.85,138.83,7.40275494]
[1764111711353,3.24,138.85,138.83,0.2]
[1764111711553,3.92,138.85,138.83,0.2]
[1764111713273,3.24,138.84,138.83,0.2]
[1764111714786,3.24,138.84,138.83,23.3565861]
[1764111715967,7.19960231,138.9,138.83,57.67308533]
[1764111716146,3.24,138.87,138.84,0.66]
[1764111716941,3.24,138.87,138.84,6.64348276]
[1764111717341,3.24,138.87,138.85,7.20201656]
[1764111717539,3.24,138.87,138.84,13.84583469]
[1764111717764,3.24,138.87,138.84,6.64348276]
[1764111717961,3.24,138.87,138.84,5.98348276]
[1764111718241,0.7,138.86,138.83,32.52185353]
[1764111718439,0.7,138.86,138.83,25.31880892]
[1764111718660,3.24,138.87,138.83,32.52175544]
[1764111718947,3.94,138.87,138.83,33.18175544]
[1764111720372,3.24,138.87,138.84,0.7]
[1764111720540,3.92,138.87,138.83,33.22175544]
[1764111720742,3.92,138.87,138.83,51.22939067]
[1764111721351,0.68,138.86,138.83,50.52939067]
[1764111725147,0.68,138.86,138.83,51.22939067]
[1764111725644,0.68,138.86,138.83,32.52175544]
[1764111725970,0.68,138.86,138.83,16.21289144]
[1764111726358,3.24,138.85,138.83,16.21289144]
[1764111726976,3.24,138.85,138.83,16.91289144]
[1764111727470,3.24,138.85,138.83,16.21289144]
[1764111728675,3.24,138.85,138.83,16.91289144]
[1764111728872,0.68,138.87,138.83,16.91289144]
[1764111729057,3.24,138.86,138.83,16.21289144]
[1764111729483,3.24,138.86,138.83,16.91289144]
[1764111729680,3.92,138.86,138.83,16.91289144]
[1764111730359,3.92,138.86,138.83,7.40294652]
[1764111730360,0.68,138.85,138.83,7.40294652]
[1764111730678,0.68,138.85,138.83,0.2]
[1764111731881,3.92,138.86,138.83,7.40300494]
[1764111732880,17.99807224,138.91,138.83,7.40300494]
[1764111733060,0.68,138.88,138.84,0.7]
[1764111733564,0.68,138.88,138.83,26.11064017]
[1764111734461,0.68,138.88,138.83,25.41064017]
[1764111734663,34.30558907,138.92,138.83,25.41064017]
[1764111734664,7.19844468,138.92,138.85,8.80994492]
[1764111734887,3.24,138.91,138.87,25.20342766]
[1764111735382,3.24,138.91,138.87,25.90342766]
[1764111735687,3.92,138.91,138.87,25.90342766]
[1764111735891,0.68,138.95,138.88,31.8038894]
[1764111736056,5.98508048,138.98,138.92,8.80994492]
[1764111736383,5.98508048,138.98,138.92,14.7950254]
[1764111736384,3.24,138.98,138.92,14.7950254]
[1764111736556,3.24,138.98,138.94,8.80994492]
[1764111736756,3.24,138.99,138.94,14.7950254]
[1764111737074,3.24,138.99,138.96,7.19631548]
[1764111737580,16.308864,139.03,138.96,7.19631548]
[1764111737581,1.99999999,139.1,138.98,5.98508048]
[1764111737754,1.99999999,139.1,138.97,9.50994492]
[1764111737755,5.98508048,139.08,139.01,8.80994492]
[1764111738177,0.68,139.08,139.03,8.80994492]
[1764111738379,7.18918225,139.1,139.03,14.7950254]
[1764111738380,3.24,139.07,139.03,14.7950254]
[1764111738586,0.68,139.1,139.06,16.308864]
[1764111738755,5.98508048,139.08,138.99,6.68508048]
[1764111739084,5.98508048,139.05,139.0,32.31298029]
[1764111739279,3.24,139.04,139.0,32.31298029]
[1764111739468,3.96,139.04,139.0,32.31298029]
[1764111739668,5.98508048,139.01,138.93,0.71]
[1764111739867,5.98508048,139.01,138.87,50.0]
[1764111739868,5.98508048,138.97,138.9,7.90928018]
[1764111740175,3.24,138.96,138.91,25.11880892]
[1764111740490,3.24,138.97,138.92,5.98508048]
[1764111740782,3.24,138.97,138.92,8.80994492]
[1764111741098,7.91643171,138.96,138.91,0.71]
[1764111741295,7.91643171,138.96,138.9,26.41555375]
[1764111741594,10.40621221,138.94,138.88,7.20037358]
[1764111741888,10.40621221,138.93,138.87,8.80994492]
[1764111742054,3.24,138.92,138.87,25.11880892]
[1764111742259,3.24,138.91,138.87,35.52502113]
[1764111742573,3.24,138.91,138.87,36.23502113]
[1764111743081,3.24,138.91,138.87,27.12703906]
[1764111743267,3.24,138.91,138.87,43.43590306]
[1764111743473,3.24,138.91,138.87,33.02969085]
[1764111745084,3.24,138.91,138.87,51.03213918]
[1764111745666,3.24,138.91,138.87,61.43835139]
[1764111746178,3.96,138.91,138.87,51.03213918]
[1764111746384,3.96,138.91,138.87,61.43835139]
[1764111746761,0.72,138.9,138.87,23.50974593]
[1764111747363,3.24,138.91,138.87,23.50974593]
[1764111747559,3.96,138.92,138.87,24.18974593]
[1764111747994,0.72,138.91,138.87,24.18974593]
[1764111748562,0.72,138.91,138.87,23.50974593]
[1764111748872,0.72,138.91,138.87,16.308864]
[1764111749183,0.72,138.91,138.87,23.5098418]
[1764111750686,0.72,138.91,138.86,7.20147632]
[1764111750687,7.91917726,138.91,138.86,7.20147632]
[1764111750864,10.40621221,138.9,138.83,0.88]
[1764111751192,10.40621221,138.89,138.83,9.00994492]
[1764111751488,7.20046082,138.88,138.83,16.21285974]
[1764111751796,3.24,138.87,138.83,16.21285974]
[1764111751961,3.96,138.87,138.83,16.89285974]
[1764111752161,3.24,138.88,138.84,0.68]
[1764111752390,3.96,138.88,138.84,0.68]
[1764111753266,3.24,138.88,138.86,7.20149791]
[1764111753679,0.72,138.9,138.86,7.20149791]
[1764111753878,3.24,138.89,138.86,7.20149791]
[1764111754290,3.96,138.89,138.86,7.20149791]
[1764111755676,0.72,138.88,138.86,7.20149791]
[1764111756091,3.96,138.88,138.86,7.20149791]
[1764111757990,3.24,138.88,138.86,7.20149791]
[1764111758904,3.96,138.88,138.86,7.20149791]
[1764111760279,7.19909044,138.91,138.86,7.20149791]
[1764111760466,3.96,138.9,138.86,7.88149791]
[1764111761074,3.24,138.9,138.87,0.68]
[1764111761277,3.96,138.9,138.86,25.20524268]
[1764111761584,0.72,138.89,138.86,7.20149791]
[1764111762400,3.24,138.88,138.86,7.20149791]
[1764111762998,3.96,138.88,138.85,16.01187708]
[1764111763307,3.96,138.88,138.85,16.69187708]
[1764111763676,3.96,138.88,138.85,16.01187708]
[1764111763875,3.24,138.88,138.85,16.69187708]
[1764111764370,3.24,138.88,138.85,16.01187708]
[1764111764577,3.96,138.88,138.85,16.01187708]
[1764111765696,3.24,138.88,138.85,44.4231307]
[1764111766004,3.24,138.88,138.85,45.1031307]
[1764111767094,3.24,138.88,138.85,27.09808929]
[1764111768296,3.96,138.88,138.85,16.01187708]
[1764111768505,0.72,138.87,138.83,0.2]
[1764111769009,7.20149791,138.86,138.83,0.2]
[1764111769409,0.72,138.85,138.83,0.2]
[1764111769718,13.64621221,138.84,138.82,0.2]
[1764111769902,10.40621221,138.83,138.76,0.2]
[1764111770099,10.40621221,138.82,138.76,0.2]
[1764111770408,10.40621221,138.81,138.76,0.2]
[1764111770711,3.24,138.8,138.76,0.2]
[1764111770913,0.72,138.8,138.76,16.21641649]
[1764111771115,3.24,138.79,138.76,27.3026287]
[1764111771990,3.24,138.79,138.76,45.31934821]
[1764111774924,3.24,138.8,138.77,7.88616848]
[1764111775504,0.66,138.83,138.78,0.68]
[1764111775702,7.20281284,138.84,138.78,0.68]
[1764111775703,3.24,138.82,138.79,8.80994492]
[1764111776221,3.24,138.82,138.8,0.68]
[1764111776422,3.24,138.82,138.81,7.20409192]
[1764111777033,3.24,138.82,138.81,6.19409192]
[1764111777817,0.66,138.84,138.81,6.19409192]
[1764111778015,0.66,138.84,138.8,7.20441525]
[1764111778016,3.24,138.83,138.8,7.20441525]
[1764111778628,3.24,138.83,138.8,7.88441525]
[1764111780206,3.24,138.83,138.8,25.89594262]
[1764111780402,0.66,138.84,138.8,25.89594262]
[1764111780718,3.24,138.83,138.8,25.89594262]
[1764111781418,0.72,138.82,138.79,7.20491475]
[1764111781824,3.96,138.82,138.79,7.20491475]
[1764111782311,3.96,138.82,138.79,7.92491475]
[1764111782810,18.32841781,138.85,138.8,0.72]
[1764111783010,70.30621221,138.87,138.81,8.80994492]
[1764111783328,3.24,138.86,138.81,35.52502113]
[1764111783531,3.24,138.86,138.83,8.80994492]
[1764111783737,0.72,138.89,138.83,8.80994492]
[1764111783934,17.60586673,138.9,138.83,9.52994492]
[1764111783935,3.24,138.86,138.83,9.52994492]
[1764111785143,3.24,138.86,138.84,7.20253529]
[1764111785515,3.24,138.86,138.84,7.92253529]
[1764111785719,0.72,138.85,138.82,7.20339945]
[1764111786340,11.12621221,138.85,138.78,7.20564922]
[1764111786529,11.12621221,138.85,138.77,27.14215726]
[1764111786837,28.44529095,138.86,138.76,7.40648201]
[1764111786838,11.12621221,138.84,138.76,7.40648201]
[1764111787019,7.20409192,138.81,138.76,0.2]
[1764111787218,3.24,138.8,138.76,0.2]
[1764111787542,0.72,138.79,138.76,0.2]
[1764111789443,18.33155738,138.79,138.76,0.2]
[1764111789640,36.34438251,138.79,138.76,0.2]
[1764111789838,0.72,138.78,138.76,0.2]
[1764111790023,3.24,138.77,138.76,0.2]
[1764111790428,3.96,138.77,138.76,0.2]
[1764111792142,11.16616848,138.77,138.76,0.2]
[1764111793546,3.96,138.77,138.76,0.2]
[1764111793717,0.72,138.79,138.76,0.2]
[1764111793922,10.40621221,138.85,138.77,19.21615713]
[1764111794245,3.24,138.84,138.79,8.80994492]
[1764111794559,3.24,138.83,138.79,35.52502113]
[1764111794731,10.40621221,138.88,138.8,0.72]
[1764111794932,3.24,138.87,138.82,26.71507621]
[1764111795417,0.72,138.86,138.81,7.20396571]
[1764111795922,11.12621221,138.86,138.81,7.92396571]
[1764111796123,11.12621221,138.86,138.81,7.20396571]
[1764111796325,0.72,138.85,138.8,16.01449691]
[1764111796517,11.12621221,138.85,138.8,16.01449691]
[1764111796720,11.12621221,138.85,138.8,7.20455199]
[1764111796918,0.72,138.84,138.8,7.92455199]
[1764111797121,3.24,138.83,138.8,7.92455199]
[1764111797347,3.24,138.83,138.79,7.20494477]
[1764111797549,3.96,138.83,138.79,7.92494477]
[1764111797954,0.72,138.82,138.79,8.80994492]
[1764111798130,3.24,138.81,138.79,8.80994492]
[1764111798933,3.24,138.81,138.79,16.01482272]
[1764111799333,3.24,138.81,138.79,7.2048778]
[1764111799565,3.24,138.81,138.79,16.01482272]
[1764111799859,3.24,138.81,138.79,16.73482272]
[1764111800462,3.24,138.82,138.79,44.43386006]
[1764111800672,3.24,138.82,138.8,0.72]
[1764111800952,3.24,138.82,138.81,7.20409192]
[1764111801165,0.72,138.84,138.81,7.20409192]
[1764111801343,77.50734154,138.87,138.81,7.20409192]
[1764111801542,0.72,138.86,138.82,8.80994492]
[1764111801760,3.24,138.85,138.82,9.52994492]
[1764111802173,3.24,138.85,138.83,0.72]
[1764111802661,0.72,138.88,138.84,8.80994492]
[1764111802961,7.19990528,138.9,138.84,8.80994492]
[1764111802962,0.72,138.9,138.84,8.80994492]
[1764111803151,0.72,138.92,138.86,8.80994492]
[1764111803463,3.94,138.91,138.86,8.80994492]
[1764111803865,0.7,138.9,138.86,8.80994492]
[1764111804248,0.7,138.9,138.85,25.92705797]
[1764111804249,6.68507853,138.9,138.85,7.20201656]
[1764111804759,6.68507853,138.89,138.85,7.20201656]
[1764111805254,0.7,138.88,138.84,34.01881844]
[1764111805450,3.24,138.87,138.84,34.01881844]
[1764111805650,3.24,138.87,138.84,34.73881844]
[1764111806748,0.7,138.86,138.81,24.23265932]
[1764111807066,0.7,138.86,138.82,8.80994492]
[1764111807860,0.7,138.86,138.82,9.52994492]
[1764111808044,0.7,138.89,138.83,0.72]
[1764111808244,3.24,138.88,138.83,6.70507853]
[1764111808462,3.24,138.88,138.85,8.80994492]
[1764111808668,3.24,138.88,138.86,7.20149791]
[1764111812455,0.7,138.9,138.86,7.20149791]
[1764111812654,3.24,138.89,138.85,8.80994492]
[1764111813069,3.94,138.89,138.85,8.80994492]
[1764111813664,3.94,138.89,138.85,16.01151094]
[1764111814067,11.14007778,138.89,138.85,16.73151094]
[1764111814574,3.94,138.89,138.85,16.73151094]
[1764111815078,0.7,138.88,138.85,16.01151094]
[1764111815246,0.7,138.88,138.85,16.73151094]
[1764111815670,0.7,138.88,138.85,16.01151094]
[1764111816050,7.89942404,138.9,138.85,16.73151094]
[1764111816367,3.94,138.89,138.85,16.73151094]
[1764111817176,0.7,138.88,138.85,16.01151094]
[1764111818382,0.7,138.88,138.85,16.73151094]
[1764111818581,3.24,138.89,138.85,16.73151094]
[1764111818963,0.7,138.88,138.85,16.73151094]
[1764111820282,7.90056914,138.88,138.85,16.01151094]
[1764111820487,7.90056914,138.88,138.84,16.01225737]
[1764111820988,7.90056914,138.88,138.84,16.73225737]
[1764111821199,3.24,138.87,138.84,16.73225737]
[1764111823173,3.24,138.87,138.84,16.01225737]
[1764111823470,3.24,138.87,138.84,16.73225737]
[1764111823791,67.09915588,138.91,138.86,8.80994492]
[1764111823992,3.94,138.9,138.86,8.80994492]
[1764111824366,3.94,138.9,138.86,9.52994492]
[1764111824880,0.7,138.89,138.86,9.52994492]
[1764111825886,0.7,138.91,138.87,7.20097933]
[1764111826070,3.24,138.9,138.87,7.20097933]
[1764111826485,3.94,138.9,138.87,7.20097933]
[1764111826681,0.7,138.92,138.88,0.72]
[1764111826865,3.24,138.89,138.88,9.52994492]
[1764111828786,3.24,138.89,138.88,16.73040574]
[1764111829104,59.9,138.94,138.89,8.80994492]
[1764111829268,3.94,138.93,138.89,8.80994492]
[1764111829471,3.24,138.93,138.89,8.80994492]
[1764111829671,0.7,138.92,138.89,8.80994492]
[1764111829978,3.24,138.91,138.9,9.52994492]
[1764111830786,3.24,138.91,138.9,16.00936896]
[1764111830979,59.9,138.94,138.9,37.24122483]
[1764111830980,3.22,138.92,138.9,37.24122483]
[1764111831304,3.22,138.92,138.91,0.72]
[1764111831489,0.1,138.95,138.91,8.80994492]
[1764111831695,3.22,138.94,138.91,12.04324068]
[1764111831873,3.22,138.94,138.92,3.23329576]
[1764111832396,0.1,138.95,138.93,12.04324068]
[1764111832767,0.1,138.95,138.94,7.19735137]
[1764111833080,0.8,138.95,138.93,8.80994492]
[1764111833477,0.8,138.95,138.93,16.00762692]
[1764111834293,3.22,138.94,138.93,16.00762692]
[1764111834499,3.22,138.94,138.92,8.80994492]
[1764111834801,3.22,138.94,138.91,8.80994492]
[1764111834802,0.69,138.93,138.91,8.80994492]
[1764111835181,0.69,138.93,138.91,16.0088488]
[1764111835392,3.22,138.94,138.91,16.0088488]
[1764111835691,0.69,138.93,138.91,16.0088488]
[1764111836210,0.69,138.93,138.91,7.19890388]
[1764111836506,0.69,138.93,138.9,7.19917078]
[1764111836684,0.69,138.93,138.89,16.00987238]
[1764111837298,0.69,138.93,138.89,8.80994492]
[1764111837471,0.69,138.93,138.89,9.51994492]
[1764111837798,0.69,138.93,138.89,16.71988716]
[1764111839900,0.69,138.93,138.89,7.90994224]
[1764111840484,0.69,138.93,138.89,34.00974316]
[1764111840684,0.1,138.95,138.9,0.71]
[1764111840884,3.22,138.94,138.9,9.51994492]
[1764111841084,3.22,138.94,138.9,12.03324068]
[1764111841295,3.22,138.94,138.91,0.71]
[1764111841679,3.91,138.94,138.9,11.32324068]
[1764111841875,3.91,138.94,138.9,12.03324068]
[1764111842402,3.91,138.94,138.91,0.71]
[1764111842583,3.91,138.94,138.92,7.19838756]
[1764111842980,0.1,138.95,138.93,0.71]
[1764111843203,3.32,138.95,138.93,0.71]
[1764111843791,0.1,138.95,138.94,8.80994492]
[1764111844112,0.1,138.95,138.94,11.32324068]
[1764111844301,0.1,138.95,138.94,12.03324068]
[1764111844493,0.1,138.95,138.94,16.71729629]
[1764111844894,0.1,138.95,138.94,8.80994492]
[1764111845093,0.1,138.95,138.94,9.51994492]
[1764111845509,0.1,138.95,138.94,16.71729629]
[1764111846215,0.1,138.95,138.94,16.00729629]
[1764111849181,0.79,138.95,138.92,7.19802896]
[1764111849797,0.79,138.95,138.91,16.00865562]
[1764111851292,7.98725016,138.95,138.91,16.00865562]
[1764111851692,0.69,138.94,138.91,16.00865562]
[1764111852186,0.69,138.94,138.91,16.71865562]
[1764111853314,0.69,138.94,138.91,9.51994492]
[1764111853610,0.69,138.94,138.91,16.71884389]
[1764111857894,0.69,138.94,138.91,16.00884389]
[1764111858095,10.40067536,138.94,138.89,23.50833341]
[1764111858297,2.51329576,138.93,138.87,8.80994492]
[1764111858524,2.51329576,138.93,138.78,7.20564922]
[1764111858525,2.51329576,138.89,138.78,7.20564922]
[1764111858710,3.22,138.88,138.85,2.51329576]
[1764111859029,3.22,138.87,138.81,3.22329576]
[1764111859205,2.51329576,138.84,138.78,25.21977229]
[1764111859406,2.51329576,138.8,138.77,7.20603442]
[1764111859601,6.42329576,138.79,138.76,7.40652762]
[1764111859803,3.22,138.79,138.76,26.13324713]
[1764111860004,3.22,138.79,138.77,0.71]
[1764111860203,0.69,138.83,138.79,16.308864]
[1764111860422,2.51329576,138.81,138.76,0.2]
[1764111860611,0.69,138.8,138.76,8.11648059]
[1764111860821,3.22,138.83,138.81,8.80994492]
[1764111861006,3.22,138.84,138.81,8.80994492]
[1764111861209,2.51329576,138.82,138.79,16.308864]
[1764111861408,2.51329576,138.82,138.76,25.4232001]
[1764111861409,3.20329576,138.81,138.76,0.2]
[1764111861594,2.51329576,138.84,138.77,3.22329576]
[1764111861794,0.69,138.85,138.77,3.22329576]
[1764111861795,3.22,138.85,138.79,11.32324068]
[1764111861990,6.42329576,138.85,138.8,8.80994492]
[1764111862328,2.51329576,138.88,138.81,0.71]
[1764111862329,10.05318304,138.88,138.81,0.71]
[1764111862530,2.51329576,138.86,138.82,8.80994492]
[1764111862720,3.22,138.87,138.84,8.80994492]
[1764111863026,10.42339977,138.85,138.79,8.80994492]
[1764111863318,0.69,138.86,138.79,0.72]
[1764111863319,10.42339977,138.83,138.79,0.72]
[1764111863615,3.22,138.85,138.83,7.20305409]
[1764111864122,3.22,138.85,138.83,7.92305409]
[1764111864616,0.71,138.87,138.84,9.52994492]
[1764111864814,3.93,138.87,138.84,9.52994492]
[1764111865014,14.35339977,138.87,138.82,16.308864]
[1764111865223,11.13339977,138.86,138.83,8.80994492]
[1764111865523,0.71,138.86,138.83,8.80994492]
[1764111865718,3.22,138.85,138.83,16.73255346]
[1764111865936,0.71,138.88,138.83,16.73255346]
[1764111865937,3.22,138.88,138.85,8.80994492]
[1764111866117,3.93,138.88,138.85,8.80994492]
[1764111866510,3.22,138.88,138.85,9.52994492]
[1764111866803,3.93,138.88,138.84,8.80994492]
[1764111867008,3.93,138.88,138.84,9.52994492]
[1764111867734,3.93,138.88,138.84,16.73203987]
[1764111867735,0.71,138.87,138.84,16.73203987]
[1764111867920,3.22,138.88,138.84,16.73203987]
[1764111868122,3.93,138.88,138.84,16.73203987]
[1764111869513,10.42339977,138.85,138.79,35.64135495]
[1764111869818,10.42339977,138.84,138.78,25.93958159]
[1764111870020,13.64339977,138.83,138.79,8.80994492]
[1764111870221,3.22,138.83,138.79,8.80994492]
[1764111870530,0.71,138.82,138.79,8.80994492]
[1764111870736,3.22,138.82,138.79,9.52994492]
[1764111870932,3.22,138.83,138.8,0.72]
[1764111871127,0.71,138.82,138.79,8.80994492]
[1764111871326,3.93,138.83,138.8,7.20461095]
[1764111871526,3.22,138.85,138.81,19.23334469]
[1764111871726,10.42339977,138.87,138.84,8.80994492]
[1764111871727,3.22,138.87,138.84,8.80994492]
[1764111871933,0.71,138.88,138.84,19.23334469]
[1764111871934,3.22,138.88,138.84,19.23334469]
[1764111872132,3.22,138.88,138.84,19.95334469]
[1764111872530,3.93,138.88,138.84,8.80994492]
[1764111872844,0.71,138.87,138.84,8.80994492]
[1764111873034,0.71,138.91,138.86,8.80994492]
[1764111873349,3.22,138.9,138.86,9.52994492]
[1764111873528,0.71,138.91,138.88,8.80994492]
[1764111873733,59.9,138.98,138.88,8.80994492]
[1764111873734,0.71,138.96,138.9,8.80994492]
[1764111874046,14.35339977,138.94,138.9,8.80994492]
[1764111874231,14.35339977,138.94,138.88,8.80994492]
[1764111874420,0.71,138.93,138.88,8.80994492]
[1764111874621,11.13339977,138.93,138.88,8.80994492]
[1764111875021,0.71,138.92,138.88,9.52994492]
[1764111875646,0.71,138.92,138.89,7.1999424]
[1764111876524,10.42339977,138.91,138.86,16.308864]
[1764111876725,11.13339977,138.94,138.87,19.95334469]
[1764111877051,3.22,138.91,138.87,19.95334469]
[1764111877345,3.22,138.91,138.87,19.23334469]
[1764111877550,0.71,138.93,138.9,7.19942404]
[1764111877749,3.22,138.92,138.9,7.19942404]
[1764111877949,3.22,138.92,138.84,7.20235125]
[1764111877950,10.42339977,138.91,138.84,7.20235125]
[1764111878130,10.42339977,138.89,138.85,8.80994492]
[1764111878335,3.22,138.88,138.85,8.80994492]
[1764111878539,10.42339977,138.87,138.81,28.43298004]
[1764111878747,11.13339977,138.87,138.81,28.43298004]
[1764111879044,11.13339977,138.87,138.82,25.11880892]
[1764111879247,11.13339977,138.87,138.82,51.05119991]
[1764111879429,11.13339977,138.87,138.82,50.33119991]
[1764111879637,0.71,138.87,138.84,16.01219923]
[1764111881656,0.71,138.89,138.84,16.01219923]
[1764111881825,3.22,138.88,138.85,0.72]
[1764111884455,3.22,138.88,138.86,7.20149791]
[1764111884843,13.64339977,138.88,138.83,16.01299901]
[1764111885040,11.13339977,138.93,138.87,19.23334469]
[1764111885354,3.22,138.92,138.87,19.23334469]
[1764111886455,0.71,138.91,138.87,16.01047865]
[1764111887157,0.71,138.88,138.86,23.51017224]
[1764111887363,0.71,138.87,138.86,23.51017224]
[1764111887564,0.71,138.87,138.85,7.20179226]